[Event "Early-Titled-Tuesday-Blitz-February-20-2024"]
[Site "Chess.com"]
[Date "2024.02.20"]
[Round "8"]
[White "Hovik_Hayrapetyan"]
[Black "wonderfultime"]
[Result "1-0"]
[WhiteElo "2913"]
[BlackElo "3056"]
[TimeControl "180+1"]
[EndTime "9:31:46 PST"]
[Termination "Hovik_Hayrapetyan won by checkmate"]

1. d4 {[%clk 0:03:00.9]} 1... d5 {[%clk 0:02:58.3]} 2. c4 {[%clk 0:03:00.8]}
2... c6 {[%clk 0:02:58.6]} 3. Nf3 {[%clk 0:03:00.6]} 3... Nf6 {[%clk 0:02:59.1]}
4. Nc3 {[%clk 0:03:01]} 4... a6 {[%clk 0:02:59.2]} 5. e3 {[%clk 0:02:54.4]} 5...
Bf5 {[%clk 0:02:59.2]} 6. Nh4 {[%clk 0:02:47]} 6... Be4 {[%clk 0:02:58.4]} 7. f3
{[%clk 0:02:31.3]} 7... Bg6 {[%clk 0:02:59]} 8. Qb3 {[%clk 0:02:28.6]} 8... Ra7
{[%clk 0:02:59.4]} 9. cxd5 {[%clk 0:02:17.6]} 9... cxd5 {[%clk 0:02:57.3]} 10.
Bd2 {[%clk 0:02:14]} 10... e6 {[%clk 0:02:57.5]} 11. Rc1 {[%clk 0:02:11.1]}
11... Be7 {[%clk 0:02:10.4]} 12. Nxg6 {[%clk 0:02:09.7]} 12... hxg6 {[%clk
0:02:11.3]} 13. Na4 {[%clk 0:02:03.3]} 13... Nbd7 {[%clk 0:01:47.1]} 14. Nc5
{[%clk 0:01:52.2]} 14... Nxc5 {[%clk 0:01:41]} 15. dxc5 {[%clk 0:01:53.1]} 15...
O-O {[%clk 0:01:29.8]} 16. Qb6 {[%clk 0:01:46.4]} 16... Qb8 {[%clk 0:01:26.7]}
17. Qa5 {[%clk 0:01:12.5]} 17... Rc8 {[%clk 0:01:20.4]} 18. b4 {[%clk
0:01:09.6]} 18... Nd7 {[%clk 0:01:10.2]} 19. Be2 {[%clk 0:00:59.5]} 19... b6
{[%clk 0:00:57.8]} 20. cxb6 {[%clk 0:00:56.6]} 20... Rxc1+ {[%clk 0:00:58.7]}
21. Bxc1 {[%clk 0:00:57.3]} 21... Nxb6 {[%clk 0:00:59.5]} 22. Bd2 {[%clk
0:00:31.1]} 22... Nc4 {[%clk 0:00:55.8]} 23. Bxc4 {[%clk 0:00:30.3]} 23... dxc4
{[%clk 0:00:56.7]} 24. O-O {[%clk 0:00:19.9]} 24... Rd7 {[%clk 0:00:57.2]} 25.
Bc3 {[%clk 0:00:17.9]} 25... Rd3 {[%clk 0:00:55.7]} 26. Be5 {[%clk 0:00:07.7]}
26... Qc8 {[%clk 0:00:42.9]} 27. Rc1 {[%clk 0:00:06.3]} 27... Rd5 {[%clk
0:00:40.6]} 28. Qc7 {[%clk 0:00:02.8]} 28... Qe8 {[%clk 0:00:13.6]} 29. Bd4
{[%clk 0:00:03.2]} 29... Bd8 {[%clk 0:00:14.4]} 30. Qxc4 {[%clk 0:00:03.1]}
30... Qa4 {[%clk 0:00:12.7]} 31. Qb3 {[%clk 0:00:03.3]} 31... Qd7 {[%clk
0:00:12.6]} 32. Rc4 {[%clk 0:00:02.8]} 32... e5 {[%clk 0:00:11.3]} 33. Bc3
{[%clk 0:00:03.2]} 33... Rd1+ {[%clk 0:00:10]} 34. Kf2 {[%clk 0:00:03.6]} 34...
Qd3 {[%clk 0:00:06.8]} 35. Be1 {[%clk 0:00:02.8]} 35... Qd7 {[%clk 0:00:05.4]}
36. Rc7 {[%clk 0:00:02.4]} 36... Qxc7 {[%clk 0:00:05.3]} 37. Qxd1 {[%clk
0:00:02]} 37... Bh4+ {[%clk 0:00:03.7]} 38. g3 {[%clk 0:00:01.9]} 38... Be7
{[%clk 0:00:04.6]} 39. a4 {[%clk 0:00:01.9]} 39... Qc4 {[%clk 0:00:05]} 40. Qe2
{[%clk 0:00:01.9]} 40... Qc6 {[%clk 0:00:04.4]} 41. b5 {[%clk 0:00:02.2]} 41...
axb5 {[%clk 0:00:05.3]} 42. Qxb5 {[%clk 0:00:02.5]} 42... Qc2+ {[%clk
0:00:05.7]} 43. Kf1 {[%clk 0:00:03.1]} 43... Bc5 {[%clk 0:00:06.3]} 44. a5
{[%clk 0:00:02.6]} 44... Bxe3 {[%clk 0:00:06.3]} 45. a6 {[%clk 0:00:03.1]} 45...
Qxh2 {[%clk 0:00:05.8]} 46. Qe8+ {[%clk 0:00:02.2]} 46... Kh7 {[%clk 0:00:06]}
47. Qxe5 {[%clk 0:00:03.1]} 47... Qg1+ {[%clk 0:00:05.7]} 48. Ke2 {[%clk
0:00:03.3]} 48... Ba7 {[%clk 0:00:06.6]} 49. Kd3 {[%clk 0:00:03.7]} 49... Qf1+
{[%clk 0:00:06.7]} 50. Qe2 {[%clk 0:00:03.6]} 50... Qg1 {[%clk 0:00:07.4]} 51.
f4 {[%clk 0:00:03.9]} 51... Qc5 {[%clk 0:00:07.2]} 52. Qe4 {[%clk 0:00:03.7]}
52... Qb5+ {[%clk 0:00:07]} 53. Qc4 {[%clk 0:00:04.3]} 53... Qb1+ {[%clk
0:00:07.4]} 54. Ke2 {[%clk 0:00:04.9]} 54... f5 {[%clk 0:00:06.4]} 55. Bd2
{[%clk 0:00:05.1]} 55... Qg1 {[%clk 0:00:06.1]} 56. Qd3 {[%clk 0:00:04.7]} 56...
Qg2+ {[%clk 0:00:06.5]} 57. Kd1 {[%clk 0:00:04.9]} 57... Qg1+ {[%clk 0:00:06.5]}
58. Kc2 {[%clk 0:00:05.3]} 58... Kh6 {[%clk 0:00:07]} 59. Bc3 {[%clk 0:00:05.2]}
59... Qf2+ {[%clk 0:00:06.9]} 60. Kb3 {[%clk 0:00:05.5]} 60... Qb6+ {[%clk
0:00:07.4]} 61. Kc2 {[%clk 0:00:05.9]} 61... Qc6 {[%clk 0:00:08.2]} 62. Qd8
{[%clk 0:00:05.4]} 62... Kh5 {[%clk 0:00:07.8]} 63. Qg5# {[%clk 0:00:05.4]} 1-0

[Event "Early-Titled-Tuesday-Blitz-February-20-2024"]
[Site "Chess.com"]
[Date "2024.02.20"]
[Round "8"]
[White "CM_rui"]
[Black "vovachesss"]
[Result "1/2-1/2"]
[WhiteElo "2616"]
[BlackElo "2805"]
[TimeControl "180+1"]
[EndTime "9:31:46 PST"]
[Termination "Game drawn by repetition"]

1. e4 {[%clk 0:02:59.6]} 1... c5 {[%clk 0:02:59.9]} 2. Nf3 {[%clk 0:02:58.3]}
2... e6 {[%clk 0:03:00.4]} 3. c4 {[%clk 0:02:58.2]} 3... Nc6 {[%clk 0:02:53.7]}
4. d4 {[%clk 0:02:58.3]} 4... cxd4 {[%clk 0:02:53.9]} 5. Nxd4 {[%clk 0:02:58.6]}
5... Bb4+ {[%clk 0:02:50.6]} 6. Nc3 {[%clk 0:02:58.4]} 6... Nf6 {[%clk
0:02:50.4]} 7. Nxc6 {[%clk 0:02:57.8]} 7... bxc6 {[%clk 0:02:48.8]} 8. Bd3
{[%clk 0:02:57.8]} 8... e5 {[%clk 0:02:38]} 9. O-O {[%clk 0:02:58.1]} 9... O-O
{[%clk 0:02:38.1]} 10. Qc2 {[%clk 0:02:56.7]} 10... d6 {[%clk 0:02:35.9]} 11. h3
{[%clk 0:02:56.6]} 11... Be6 {[%clk 0:02:34.4]} 12. Be3 {[%clk 0:02:55]} 12...
Qa5 {[%clk 0:02:31.6]} 13. Rfd1 {[%clk 0:02:44.8]} 13... Bc5 {[%clk 0:02:23.3]}
14. Qe2 {[%clk 0:02:35.4]} 14... Rab8 {[%clk 0:02:19.2]} 15. Rab1 {[%clk
0:02:28]} 15... Bd4 {[%clk 0:02:04]} 16. Bd2 {[%clk 0:02:18.7]} 16... Qc7 {[%clk
0:01:55.2]} 17. b4 {[%clk 0:02:16.7]} 17... Nd7 {[%clk 0:01:38.6]} 18. a4 {[%clk
0:02:03.2]} 18... a5 {[%clk 0:01:33.2]} 19. bxa5 {[%clk 0:01:49.6]} 19... Qxa5
{[%clk 0:01:20.9]} 20. Nd5 {[%clk 0:01:19.5]} 20... Qxa4 {[%clk 0:01:12.4]} 21.
Ne7+ {[%clk 0:01:18]} 21... Kh8 {[%clk 0:01:12.4]} 22. Be3 {[%clk 0:01:01]}
22... Rxb1 {[%clk 0:00:57.4]} 23. Rxb1 {[%clk 0:01:01.9]} 23... Nc5 {[%clk
0:00:57.8]} 24. Bc2 {[%clk 0:00:44.3]} 24... Qxc4 {[%clk 0:00:53.1]} 25. Qxc4
{[%clk 0:00:38.6]} 25... Bxc4 {[%clk 0:00:54]} 26. Nxc6 {[%clk 0:00:32.6]} 26...
Ne6 {[%clk 0:00:33.1]} 27. Rd1 {[%clk 0:00:27.5]} 27... Bc5 {[%clk 0:00:23.4]}
28. Bxc5 {[%clk 0:00:25.4]} 28... dxc5 {[%clk 0:00:16.6]} 29. Nxe5 {[%clk
0:00:25.1]} 29... Be2 {[%clk 0:00:16.9]} 30. Rd2 {[%clk 0:00:22]} 30... Nd4
{[%clk 0:00:15.3]} 31. Nd7 {[%clk 0:00:16.6]} 31... Rd8 {[%clk 0:00:15]} 32. Ne5
{[%clk 0:00:09.8]} 32... Kg8 {[%clk 0:00:12.5]} 33. Bd3 {[%clk 0:00:04.1]} 33...
Bxd3 {[%clk 0:00:08.3]} 34. Nxd3 {[%clk 0:00:04.5]} 34... c4 {[%clk 0:00:08.3]}
35. Ne1 {[%clk 0:00:04.2]} 35... f6 {[%clk 0:00:04.9]} 36. Kf1 {[%clk 0:00:04]}
36... Kf7 {[%clk 0:00:04.9]} 37. Rd1 {[%clk 0:00:04.5]} 37... Ke7 {[%clk
0:00:05.1]} 38. Rc1 {[%clk 0:00:05.2]} 38... Nb3 {[%clk 0:00:05.3]} 39. Rc3
{[%clk 0:00:04.9]} 39... Rc8 {[%clk 0:00:03.1]} 40. Ke2 {[%clk 0:00:05.2]} 40...
Kd6 {[%clk 0:00:03.1]} 41. Nc2 {[%clk 0:00:05.9]} 41... Kc5 {[%clk 0:00:02.5]}
42. Ne3 {[%clk 0:00:06.5]} 42... Kb4 {[%clk 0:00:02.9]} 43. Nd5+ {[%clk
0:00:07.1]} 43... Ka3 {[%clk 0:00:02.7]} 44. Ne3 {[%clk 0:00:07.1]} 44... Kb4
{[%clk 0:00:02]} 45. Nd5+ {[%clk 0:00:07.8]} 45... Kb5 {[%clk 0:00:01.7]} 46.
Ne3 {[%clk 0:00:07.4]} 46... Na5 {[%clk 0:00:01.2]} 47. Nd5 {[%clk 0:00:07]}
47... Rc5 {[%clk 0:00:01.4]} 48. Rc1 {[%clk 0:00:06.6]} 48... Nb3 {[%clk
0:00:01.3]} 49. Rc3 {[%clk 0:00:06.7]} 49... Nd4+ {[%clk 0:00:01.1]} 50. Kd2
{[%clk 0:00:06]} 50... Nc6 {[%clk 0:00:02]} 51. Nc7+ {[%clk 0:00:05.8]} 51...
Kb6 {[%clk 0:00:02]} 52. Nd5+ {[%clk 0:00:06.3]} 52... Ka5 {[%clk 0:00:02.2]}
53. Ne3 {[%clk 0:00:06.5]} 53... Kb4 {[%clk 0:00:01.9]} 54. Nd5+ {[%clk
0:00:06.7]} 54... Kb5 {[%clk 0:00:02.2]} 55. Nc7+ {[%clk 0:00:07.3]} 55... Ka5
{[%clk 0:00:02.7]} 56. Nd5 {[%clk 0:00:07.7]} 56... Ne5 {[%clk 0:00:03.2]} 57.
f4 {[%clk 0:00:07.7]} 57... Nd7 {[%clk 0:00:02.2]} 58. Ne3 {[%clk 0:00:07.7]}
58... Nb6 {[%clk 0:00:02.2]} 59. Ra3+ {[%clk 0:00:07.4]} 59... Kb4 {[%clk
0:00:02.6]} 60. Nc2+ {[%clk 0:00:06.7]} 60... Kb5 {[%clk 0:00:02.7]} 61. Nd4+
{[%clk 0:00:07.3]} 61... Kb4 {[%clk 0:00:02.8]} 62. Nc2+ {[%clk 0:00:07.9]}
62... Kb5 {[%clk 0:00:02.4]} 63. Nd4+ {[%clk 0:00:08.3]} 63... Kb4 {[%clk
0:00:02.5]} 64. Nc2+ {[%clk 0:00:08.7]} 1/2-1/2

[Event "Early-Titled-Tuesday-Blitz-February-20-2024"]
[Site "Chess.com"]
[Date "2024.02.20"]
[Round "8"]
[White "DarZay"]
[Black "tarno17"]
[Result "1-0"]
[WhiteElo "2309"]
[BlackElo "2135"]
[TimeControl "180+1"]
[EndTime "9:31:48 PST"]
[Termination "DarZay won by checkmate"]

1. e4 {[%clk 0:02:52.1]} 1... c5 {[%clk 0:03:00.2]} 2. Nf3 {[%clk 0:02:51.6]}
2... e6 {[%clk 0:03:00.9]} 3. d4 {[%clk 0:02:51.9]} 3... cxd4 {[%clk 0:03:01.8]}
4. Nxd4 {[%clk 0:02:52.2]} 4... a6 {[%clk 0:03:02.6]} 5. c4 {[%clk 0:02:51.3]}
5... Nf6 {[%clk 0:03:02.1]} 6. Nc3 {[%clk 0:02:50.9]} 6... Bb4 {[%clk
0:03:02.8]} 7. Bd3 {[%clk 0:02:48.8]} 7... Qc7 {[%clk 0:03:02.2]} 8. Qb3 {[%clk
0:02:32.2]} 8... Bc5 {[%clk 0:02:43]} 9. Nf3 {[%clk 0:02:21.3]} 9... Nc6 {[%clk
0:02:37.7]} 10. O-O {[%clk 0:02:16.8]} 10... h6 {[%clk 0:02:14.7]} 11. Na4
{[%clk 0:01:55.1]} 11... Be7 {[%clk 0:02:06.5]} 12. Nb6 {[%clk 0:01:53.2]} 12...
Rb8 {[%clk 0:02:04.2]} 13. Be3 {[%clk 0:01:43.2]} 13... O-O {[%clk 0:01:51.8]}
14. c5 {[%clk 0:01:33.6]} 14... d6 {[%clk 0:01:44.8]} 15. cxd6 {[%clk
0:01:19.8]} 15... Bxd6 {[%clk 0:01:45.1]} 16. Nc4 {[%clk 0:01:19.8]} 16... Bf4
{[%clk 0:01:38.7]} 17. e5 {[%clk 0:01:11.1]} 17... Bxe3 {[%clk 0:01:03.9]} 18.
exf6 {[%clk 0:01:06.8]} 18... Bf4 {[%clk 0:00:51.4]} 19. fxg7 {[%clk 0:01:03.7]}
19... Kxg7 {[%clk 0:00:51.3]} 20. Qc3+ {[%clk 0:00:55.2]} 20... f6 {[%clk
0:00:50.6]} 21. g3 {[%clk 0:00:54.4]} 21... Bd6 {[%clk 0:00:49.4]} 22. Rad1
{[%clk 0:00:52.2]} 22... Bb4 {[%clk 0:00:26.6]} 23. Qc2 {[%clk 0:00:51.6]} 23...
Bd7 {[%clk 0:00:25.5]} 24. a3 {[%clk 0:00:51.1]} 24... Be7 {[%clk 0:00:21.8]}
25. Nh4 {[%clk 0:00:31.8]} 25... Be8 {[%clk 0:00:21.9]} 26. Ng2 {[%clk
0:00:28.6]} 26... f5 {[%clk 0:00:20]} 27. Nf4 {[%clk 0:00:28.4]} 27... Bf7
{[%clk 0:00:18.5]} 28. Rfe1 {[%clk 0:00:23.4]} 28... Nd4 {[%clk 0:00:15.6]} 29.
Qc3 {[%clk 0:00:22.8]} 29... Bf6 {[%clk 0:00:16.4]} 30. Qd2 {[%clk 0:00:18.2]}
30... Nf3+ {[%clk 0:00:16.5]} 31. Kg2 {[%clk 0:00:17.2]} 31... Nxd2 {[%clk
0:00:17]} 32. Rxd2 {[%clk 0:00:17.2]} 32... Rbd8 {[%clk 0:00:16]} 33. Nxe6+
{[%clk 0:00:16.3]} 33... Bxe6 {[%clk 0:00:16]} 34. Rxe6 {[%clk 0:00:16.5]} 34...
Rfe8 {[%clk 0:00:12.8]} 35. Rxe8 {[%clk 0:00:13.5]} 35... Rxe8 {[%clk
0:00:13.1]} 36. Ne3 {[%clk 0:00:13.7]} 36... Qc6+ {[%clk 0:00:11.1]} 37. Kh3
{[%clk 0:00:13.5]} 37... Bg5 {[%clk 0:00:05.9]} 38. Nxf5+ {[%clk 0:00:12.7]}
38... Kf6 {[%clk 0:00:04.5]} 39. Rc2 {[%clk 0:00:12.9]} 39... Qe6 {[%clk
0:00:03.4]} 40. g4 {[%clk 0:00:11]} 40... Rd8 {[%clk 0:00:03.4]} 41. Bc4 {[%clk
0:00:09.6]} 41... Qe5 {[%clk 0:00:02.8]} 42. Re2 {[%clk 0:00:08.9]} 42... Qf4
{[%clk 0:00:02.8]} 43. Re6+ {[%clk 0:00:08.7]} 43... Kf7 {[%clk 0:00:03.5]} 44.
Re4+ {[%clk 0:00:08.5]} 44... Kg6 {[%clk 0:00:03.9]} 45. Rxf4 {[%clk 0:00:07.7]}
45... Bxf4 {[%clk 0:00:04.8]} 46. Ne7+ {[%clk 0:00:07.7]} 46... Kh7 {[%clk
0:00:04.7]} 47. Nd5 {[%clk 0:00:08.1]} 47... Rc8 {[%clk 0:00:04.2]} 48. b3
{[%clk 0:00:07.3]} 48... b5 {[%clk 0:00:04.4]} 49. Bd3+ {[%clk 0:00:06.7]} 49...
Kg8 {[%clk 0:00:03.8]} 50. Nxf4 {[%clk 0:00:07]} 50... Rc3 {[%clk 0:00:03.2]}
51. b4 {[%clk 0:00:03.8]} 51... Rxa3 {[%clk 0:00:03.2]} 52. f3 {[%clk
0:00:03.4]} 52... a5 {[%clk 0:00:03.6]} 53. bxa5 {[%clk 0:00:03.4]} 53... b4
{[%clk 0:00:04.2]} 54. Bc4+ {[%clk 0:00:03.5]} 54... Kg7 {[%clk 0:00:03.6]} 55.
a6 {[%clk 0:00:04.1]} 55... b3 {[%clk 0:00:03.2]} 56. Nd3 {[%clk 0:00:04.5]}
56... b2 {[%clk 0:00:02.4]} 57. Nxb2 {[%clk 0:00:04.7]} 57... Ra1 {[%clk
0:00:01.5]} 58. Kg2 {[%clk 0:00:04.8]} 58... Kf6 {[%clk 0:00:02.1]} 59. Nd3
{[%clk 0:00:04.7]} 59... Ke7 {[%clk 0:00:02.3]} 60. f4 {[%clk 0:00:04.3]} 60...
Kd6 {[%clk 0:00:03]} 61. f5 {[%clk 0:00:04.3]} 61... Kc7 {[%clk 0:00:03.6]} 62.
f6 {[%clk 0:00:04.6]} 62... Kd6 {[%clk 0:00:04.1]} 63. f7 {[%clk 0:00:05.1]}
63... Ke7 {[%clk 0:00:04.9]} 64. Ne5 {[%clk 0:00:05.3]} 64... Kf8 {[%clk
0:00:05]} 65. Ng6+ {[%clk 0:00:05.6]} 65... Kg7 {[%clk 0:00:05.6]} 66. f8=Q+
{[%clk 0:00:05.9]} 66... Kxg6 {[%clk 0:00:06.5]} 67. Qf7+ {[%clk 0:00:06.3]}
67... Kg5 {[%clk 0:00:07.1]} 68. Qf5+ {[%clk 0:00:06.7]} 68... Kh4 {[%clk
0:00:06.7]} 69. Qh5# {[%clk 0:00:06.9]} 1-0

[Event "Early-Titled-Tuesday-Blitz-February-20-2024"]
[Site "Chess.com"]
[Date "2024.02.20"]
[Round "8"]
[White "Colombiano07"]
[Black "Kobalia"]
[Result "0-1"]
[WhiteElo "2467"]
[BlackElo "2800"]
[TimeControl "180+1"]
[EndTime "9:31:49 PST"]
[Termination "Kobalia won by resignation"]

1. e4 {[%clk 0:03:00.9]} 1... c5 {[%clk 0:02:59.7]} 2. Nc3 {[%clk 0:02:58.9]}
2... Nc6 {[%clk 0:02:58.7]} 3. Bb5 {[%clk 0:02:58.8]} 3... Nd4 {[%clk
0:02:58.1]} 4. Nf3 {[%clk 0:02:57.9]} 4... Nxb5 {[%clk 0:02:57.4]} 5. Nxb5
{[%clk 0:02:58.8]} 5... a6 {[%clk 0:02:56.9]} 6. Nc3 {[%clk 0:02:59]} 6... d6
{[%clk 0:02:56.9]} 7. d4 {[%clk 0:02:59.1]} 7... cxd4 {[%clk 0:02:56.2]} 8. Qxd4
{[%clk 0:03:00]} 8... Bg4 {[%clk 0:02:48.9]} 9. Bg5 {[%clk 0:02:54.2]} 9... Qa5
{[%clk 0:02:39.7]} 10. h4 {[%clk 0:02:45.7]} 10... h6 {[%clk 0:02:37.3]} 11. Bd2
{[%clk 0:02:41.9]} 11... Nf6 {[%clk 0:02:28.1]} 12. O-O-O {[%clk 0:02:37.7]}
12... Rc8 {[%clk 0:02:21.8]} 13. Kb1 {[%clk 0:02:36.8]} 13... Qc5 {[%clk
0:02:18.1]} 14. Qd3 {[%clk 0:02:32.1]} 14... e6 {[%clk 0:02:15.9]} 15. Be3
{[%clk 0:02:28.4]} 15... Qc4 {[%clk 0:02:13.3]} 16. Bf4 {[%clk 0:02:12.5]} 16...
e5 {[%clk 0:02:08.9]} 17. Bc1 {[%clk 0:01:46.1]} 17... Be7 {[%clk 0:02:08.2]}
18. Qxc4 {[%clk 0:01:41]} 18... Rxc4 {[%clk 0:02:07.4]} 19. Rde1 {[%clk
0:01:41.9]} 19... b5 {[%clk 0:02:03.6]} 20. Nd2 {[%clk 0:01:39.2]} 20... Rc8
{[%clk 0:02:01.7]} 21. f3 {[%clk 0:01:39.2]} 21... Be6 {[%clk 0:02:01.7]} 22.
Nf1 {[%clk 0:01:33.6]} 22... b4 {[%clk 0:02:00]} 23. Na4 {[%clk 0:01:31.3]}
23... Bd8 {[%clk 0:01:56.4]} 24. Ne3 {[%clk 0:01:27.8]} 24... Bd7 {[%clk
0:01:53.8]} 25. b3 {[%clk 0:01:25.4]} 25... Bxa4 {[%clk 0:01:53.4]} 26. bxa4
{[%clk 0:01:26.3]} 26... O-O {[%clk 0:01:52.9]} 27. Rd1 {[%clk 0:01:23.3]} 27...
Rc6 {[%clk 0:01:35.9]} 28. Nf5 {[%clk 0:01:20.7]} 28... Nh5 {[%clk 0:01:19.3]}
29. g4 {[%clk 0:01:17.1]} 29... Nf4 {[%clk 0:01:15.5]} 30. Bxf4 {[%clk
0:01:16.5]} 30... exf4 {[%clk 0:01:16.4]} 31. Rxd6 {[%clk 0:01:16.6]} 31... Rxd6
{[%clk 0:01:13.2]} 32. Nxd6 {[%clk 0:01:17.5]} 32... Bc7 {[%clk 0:01:08.2]} 33.
Nc4 {[%clk 0:01:15.3]} 33... Rd8 {[%clk 0:01:06.1]} 34. Kb2 {[%clk 0:01:14.3]}
34... a5 {[%clk 0:01:00.9]} 35. Kb3 {[%clk 0:01:12.8]} 35... g6 {[%clk
0:01:00.2]} 36. Rh2 {[%clk 0:01:06.9]} 36... Kg7 {[%clk 0:00:59]} 37. h5 {[%clk
0:01:05.8]} 37... Rd1 {[%clk 0:00:54.6]} 38. hxg6 {[%clk 0:01:04.5]} 38... Rb1+
{[%clk 0:00:52.4]} 39. Nb2 {[%clk 0:01:01.1]} 39... Be5 {[%clk 0:00:52.5]} 40.
gxf7 {[%clk 0:00:23.8]} 40... Rxb2+ {[%clk 0:00:51.9]} 41. Kc4 {[%clk
0:00:24.7]} 41... Kxf7 {[%clk 0:00:51.7]} 42. Rh5 {[%clk 0:00:19.2]} 42... Bg7
{[%clk 0:00:47.2]} 43. Rxa5 {[%clk 0:00:18.5]} 43... Rxc2+ {[%clk 0:00:45.3]}
44. Kxb4 {[%clk 0:00:17.6]} 44... Rxa2 {[%clk 0:00:40.1]} 45. Ra7+ {[%clk
0:00:16.6]} 45... Kg6 {[%clk 0:00:39.5]} 46. a5 {[%clk 0:00:14.6]} 46... Rf2
{[%clk 0:00:36.6]} 47. a6 {[%clk 0:00:14.8]} 47... Rb2+ {[%clk 0:00:31.4]} 48.
Kc4 {[%clk 0:00:13.9]} 48... Ra2 {[%clk 0:00:29.4]} 49. Kb5 {[%clk 0:00:12.6]}
49... Bd4 {[%clk 0:00:28.4]} 50. Rd7 {[%clk 0:00:11.8]} 50... Be3 {[%clk
0:00:27.8]} 51. Rd6+ {[%clk 0:00:09.3]} 51... Kg5 {[%clk 0:00:27]} 52. Rd5+
{[%clk 0:00:09.6]} 52... Kh4 {[%clk 0:00:26.5]} 53. e5 {[%clk 0:00:07.5]} 53...
Kg3 {[%clk 0:00:24.9]} 54. e6 {[%clk 0:00:07.9]} 54... Rb2+ {[%clk 0:00:25]} 55.
Kc4 {[%clk 0:00:07.5]} 55... Rb8 {[%clk 0:00:24]} 56. e7 {[%clk 0:00:07.4]}
56... Re8 {[%clk 0:00:23.2]} 57. Rd7 {[%clk 0:00:06.5]} 57... Kxf3 {[%clk
0:00:21.9]} 58. a7 {[%clk 0:00:06.2]} 58... Bxa7 {[%clk 0:00:12.7]} 59. Rxa7
{[%clk 0:00:07.1]} 59... Kxg4 {[%clk 0:00:13]} 60. Kd5 {[%clk 0:00:07.4]} 60...
f3 {[%clk 0:00:13.2]} 61. Ke6 {[%clk 0:00:06.7]} 61... f2 {[%clk 0:00:13.4]} 62.
Ra4+ {[%clk 0:00:05.1]} 62... Kg3 {[%clk 0:00:13.4]} 63. Ra3+ {[%clk 0:00:05.2]}
63... Kg2 {[%clk 0:00:13.6]} 64. Ra2 {[%clk 0:00:04.9]} 64... h5 {[%clk
0:00:13.2]} 65. Kf7 {[%clk 0:00:04.5]} 65... Rxe7+ {[%clk 0:00:13.7]} 66. Kxe7
{[%clk 0:00:05.4]} 66... h4 {[%clk 0:00:14.2]} 67. Kf6 {[%clk 0:00:06.1]} 67...
h3 {[%clk 0:00:14.6]} 68. Kf5 {[%clk 0:00:06.7]} 68... h2 {[%clk 0:00:15.1]} 0-1

[Event "Early-Titled-Tuesday-Blitz-February-20-2024"]
[Site "Chess.com"]
[Date "2024.02.20"]
[Round "8"]
[White "Statham_01"]
[Black "joshdaruca"]
[Result "1-0"]
[WhiteElo "2579"]
[BlackElo "2761"]
[TimeControl "180+1"]
[EndTime "9:31:56 PST"]
[Termination "Statham_01 won by resignation"]

1. e4 {[%clk 0:03:00.9]} 1... c5 {[%clk 0:02:59]} 2. Nc3 {[%clk 0:03:00.3]} 2...
Nc6 {[%clk 0:02:58]} 3. Bb5 {[%clk 0:03:00.4]} 3... Nd4 {[%clk 0:02:58.5]} 4.
Nf3 {[%clk 0:03:00.7]} 4... a6 {[%clk 0:02:57.3]} 5. Bd3 {[%clk 0:03:00.9]} 5...
Nc6 {[%clk 0:02:56.2]} 6. O-O {[%clk 0:02:59.2]} 6... e6 {[%clk 0:02:56.7]} 7.
b3 {[%clk 0:02:55.8]} 7... d6 {[%clk 0:02:45.6]} 8. Bb2 {[%clk 0:02:55.7]} 8...
Nf6 {[%clk 0:02:46.3]} 9. e5 {[%clk 0:02:49]} 9... dxe5 {[%clk 0:02:41.3]} 10.
Ne4 {[%clk 0:02:44.9]} 10... Nb4 {[%clk 0:02:15.2]} 11. Nxe5 {[%clk 0:02:32.5]}
11... Nxd3 {[%clk 0:02:14.5]} 12. Nxf6+ {[%clk 0:02:22.8]} 12... gxf6 {[%clk
0:02:10.7]} 13. Nxd3 {[%clk 0:02:22.8]} 13... Rg8 {[%clk 0:01:50.2]} 14. Qf3
{[%clk 0:02:21]} 14... Be7 {[%clk 0:01:49.2]} 15. Rfe1 {[%clk 0:02:00.3]} 15...
Bd7 {[%clk 0:01:39]} 16. Qxb7 {[%clk 0:01:41.6]} 16... Rc8 {[%clk 0:01:37.7]}
17. Qxa6 {[%clk 0:00:59.5]} 17... Bc6 {[%clk 0:01:24.6]} 18. Nf4 {[%clk
0:00:51]} 18... Bd6 {[%clk 0:00:54.5]} 19. Nh5 {[%clk 0:00:26]} 19... Rxg2+
{[%clk 0:00:50.1]} 20. Kf1 {[%clk 0:00:26.1]} 20... Rxh2 {[%clk 0:00:44.7]} 21.
Nxf6+ {[%clk 0:00:21.5]} 21... Kf8 {[%clk 0:00:40.6]} 22. Ke2 {[%clk 0:00:10.9]}
22... Bg3 {[%clk 0:00:22.5]} 23. Rf1 {[%clk 0:00:11.1]} 23... Bh4 {[%clk
0:00:19.8]} 24. Ng4 {[%clk 0:00:07]} 24... Rg2 {[%clk 0:00:19.3]} 25. Ne3 {[%clk
0:00:06]} 25... Rh2 {[%clk 0:00:15.9]} 26. Rae1 {[%clk 0:00:03.9]} 26... Qd7
{[%clk 0:00:12]} 27. Kd1 {[%clk 0:00:02.9]} 27... Ra8 {[%clk 0:00:12]} 28. Qc4
{[%clk 0:00:02.2]} 28... Rxa2 {[%clk 0:00:07.4]} 29. Qxc5+ {[%clk 0:00:02.8]}
29... Be7 {[%clk 0:00:07.7]} 30. Qc3 {[%clk 0:00:03.2]} 30... f6 {[%clk
0:00:07.6]} 31. Kc1 {[%clk 0:00:01.7]} 31... e5 {[%clk 0:00:07.2]} 32. d3 {[%clk
0:00:02.3]} 32... Bf3 {[%clk 0:00:06.6]} 33. Nc4 {[%clk 0:00:02.7]} 33... Qa7
{[%clk 0:00:06.3]} 34. Kd2 {[%clk 0:00:02.6]} 34... Qb8 {[%clk 0:00:05.7]} 35.
Kc1 {[%clk 0:00:01.7]} 35... Bb4 {[%clk 0:00:06.3]} 36. Nxe5 {[%clk 0:00:01.3]}
36... Bxc3 {[%clk 0:00:06.1]} 37. Nd7+ {[%clk 0:00:02.2]} 37... Kf7 {[%clk
0:00:06.4]} 38. Nxb8 {[%clk 0:00:03]} 38... Rxb2 {[%clk 0:00:06.2]} 39. Nc6
{[%clk 0:00:03.5]} 39... Rh5 {[%clk 0:00:06.3]} 40. Nd8+ {[%clk 0:00:03.6]}
40... Kg7 {[%clk 0:00:05.6]} 41. Rg1+ {[%clk 0:00:03.6]} 41... Rg5 {[%clk
0:00:05]} 42. Ne6+ {[%clk 0:00:03.4]} 42... Kg6 {[%clk 0:00:05.6]} 43. Nxg5
{[%clk 0:00:03.6]} 43... fxg5 {[%clk 0:00:06.5]} 44. Re6+ {[%clk 0:00:03.6]}
44... Kf5 {[%clk 0:00:06.2]} 45. Ra6 {[%clk 0:00:04.1]} 45... g4 {[%clk
0:00:04.8]} 46. Ra4 {[%clk 0:00:04.2]} 46... Bf6 {[%clk 0:00:04.5]} 47. Ra5+
{[%clk 0:00:04.1]} 47... Kf4 {[%clk 0:00:04.6]} 48. Ra4+ {[%clk 0:00:04.1]}
48... Kg5 {[%clk 0:00:04.9]} 49. Ra5+ {[%clk 0:00:04.5]} 49... Kg6 {[%clk
0:00:04.8]} 50. Ra6 {[%clk 0:00:04.7]} 50... h5 {[%clk 0:00:03.1]} 51. Rxf6+
{[%clk 0:00:05.1]} 51... Kxf6 {[%clk 0:00:04]} 52. Kxb2 {[%clk 0:00:05.9]} 52...
h4 {[%clk 0:00:04.9]} 53. b4 {[%clk 0:00:05.3]} 53... h3 {[%clk 0:00:05.2]} 54.
b5 {[%clk 0:00:05.8]} 54... h2 {[%clk 0:00:05.8]} 55. Re1 {[%clk 0:00:06]} 55...
h1=Q {[%clk 0:00:04.9]} 56. Rxh1 {[%clk 0:00:06.6]} 56... Bxh1 {[%clk
0:00:05.7]} 57. c4 {[%clk 0:00:05.2]} 57... Ke5 {[%clk 0:00:05.8]} 58. Kc3
{[%clk 0:00:05.6]} 58... Kd6 {[%clk 0:00:05.4]} 59. d4 {[%clk 0:00:05.5]} 59...
Bb7 {[%clk 0:00:05.8]} 60. Kd3 {[%clk 0:00:05.7]} 60... Bf3 {[%clk 0:00:05.4]}
61. Ke3 {[%clk 0:00:06]} 61... Kc7 {[%clk 0:00:04.5]} 62. c5 {[%clk 0:00:06.1]}
62... Bg2 {[%clk 0:00:03.9]} 63. Kf4 {[%clk 0:00:06.1]} 63... Bf1 {[%clk
0:00:03.3]} 64. b6+ {[%clk 0:00:05.4]} 64... Kc6 {[%clk 0:00:03.1]} 65. Kxg4
{[%clk 0:00:05.7]} 65... Ba6 {[%clk 0:00:03.1]} 66. Kf5 {[%clk 0:00:06]} 66...
Kd5 {[%clk 0:00:03.4]} 67. Kf6 {[%clk 0:00:04.5]} 67... Bb7 {[%clk 0:00:03.9]}
68. Ke7 {[%clk 0:00:04.2]} 68... Kxd4 {[%clk 0:00:04.6]} 69. Kd6 {[%clk
0:00:04.9]} 1-0